bitfinex/quotes_SOLUSD_20241107
["timestamp","ask_amount","ask_price","bid_price","bid_amount"]
[1730951879221,6.0338,189.09,189.02,12.20547377]
[1730951879401,12.20547377,189.08,189.02,12.20547377]
[1730951881618,18.23927377,189.09,189.04,12.20547377]
[1730951882122,18.23927377,189.09,189.03,12.20547377]
[1730951883209,12.20547377,189.08,188.97,0.12549]
[1730951883419,6.0338,189.09,189.01,12.20547377]
[1730951883623,12.20547377,189.08,189.01,12.20547377]
[1730951883805,12.20547377,189.07,189.01,12.20547377]
[1730951884302,12.20547377,189.07,188.96,23.776884]
[1730951884303,12.20547377,189.04,188.92,15.6234]
[1730951884625,6.0338,189.09,188.97,12.20547377]
[1730951884805,12.20547377,189.02,188.92,15.5234]
[1730951885122,12.20547377,189.01,188.95,12.20547377]
[1730951889230,12.20547377,189.02,188.92,15.5234]
[1730951889438,12.20547377,189.02,188.96,12.20547377]
[1730951889857,0.1,189.05,188.96,12.20547377]
[1730951890031,12.20547377,189.02,188.96,12.20547377]
[1730951890438,12.20547377,189.0,188.94,12.20547377]
[1730951890852,12.20547377,189.01,188.95,12.20547377]
[1730951891756,12.20547377,189.01,188.92,15.5234]
[1730951891942,12.20547377,188.99,188.88,21.33264688]
[1730951892145,0.12549,189.02,188.91,12.20547377]
[1730951892454,12.20547377,188.97,188.91,12.20547377]
[1730951892830,12.20547377,188.97,188.88,23.776884]
[1730951893027,12.20547377,188.97,188.91,12.20547377]
[1730951893232,12.20547377,188.97,188.87,16.6628]
[1730951893527,12.20547377,188.97,188.91,12.20547377]
[1730951893850,12.20547377,188.98,188.92,12.20547377]
[1730951894664,12.20547377,188.99,188.93,12.20547377]
[1730951895159,12.20547377,188.98,188.92,12.20547377]
[1730951895454,7.82097457,188.98,188.92,7.82097457]
[1730951895956,7.82097457,188.99,188.92,7.82097457]
[1730951896342,7.82097457,188.99,188.93,7.82097457]
[1730951896660,6.187,189.01,188.94,7.82097457]
[1730951896855,7.82097457,189.0,188.94,7.82097457]
[1730951897154,7.82097457,189.0,188.88,23.776884]
[1730951897155,23.57657457,189.03,188.97,7.82097457]
[1730951897360,15.7556,189.03,188.98,7.82097457]
[1730951897739,14.35457457,189.06,189.0,7.82097457]
[1730951898245,14.35457457,189.06,188.91,0.22549]
[1730951898449,7.82097457,189.04,188.98,7.82097457]
[1730951899040,7.82097457,189.05,188.99,7.82097457]
[1730951899649,14.35457457,189.06,189.0,7.82097457]
[1730951899964,7.82097457,189.07,189.01,7.82097457]
[1730951900648,15.684,189.08,188.95,21.6977]
[1730951900649,23.50497457,189.08,189.02,7.82097457]
[1730951900834,15.684,189.08,189.02,7.82097457]
[1730951901447,15.684,189.08,189.03,7.82097457]
[1730951901737,17.22100782,189.11,189.04,7.82097457]
[1730951901933,7.82097457,189.1,189.04,7.82097457]
[1730951902358,7.82097457,189.09,189.03,7.82097457]
[1730951903569,7.82097457,189.08,189.02,7.82097457]
[1730951904063,17.22100782,189.11,189.03,7.82097457]
[1730951904267,7.82097457,189.09,189.03,7.82097457]
[1730951904449,7.82097457,189.08,189.03,7.82097457]
[1730951904648,7.82097457,189.08,189.02,7.82097457]
[1730951907554,7.82097457,189.07,189.02,7.82097457]
[1730951907766,7.82097457,189.05,188.99,7.82097457]
[1730951908340,7.82097457,189.06,189.0,7.82097457]
[1730951911254,0.22549,189.1,189.01,7.82097457]
[1730951911478,7.82097457,189.07,189.01,7.82097457]
[1730951914065,7.82097457,189.06,188.96,23.776884]
[1730951914373,7.82097457,189.06,189.0,7.82097457]
[1730951914554,7.82097457,189.07,189.01,7.82097457]
[1730951917655,7.82097457,189.07,188.96,23.776884]
[1730951917849,7.82097457,189.06,189.0,7.82097457]
[1730951918165,0.22549,189.1,189.01,7.82097457]
[1730951918166,7.82097457,189.07,189.01,7.82097457]
[1730951918979,7.82097457,189.08,189.02,7.82097457]
[1730951920477,7.82097457,189.07,189.01,7.82097457]
[1730951920673,7.82097457,189.06,189.0,7.82097457]
[1730951921763,7.82097457,189.07,189.01,7.82097457]
[1730951922157,7.82097457,189.07,188.97,0.12549]
[1730951922363,7.82097457,189.08,189.02,7.82097457]
[1730951922671,7.82097457,189.07,189.01,7.82097457]
[1730951926252,17.22100782,189.11,189.01,7.82097457]
[1730951926570,7.82097457,189.08,189.02,7.82097457]
[1730951929785,7.82097457,189.09,189.03,7.82097457]
[1730951934785,18.58108239,189.11,189.05,7.82097457]
[1730951934966,7.82097457,189.1,189.05,7.82097457]
[1730951937269,7.82097457,189.1,189.04,7.82097457]
[1730951937767,18.58108239,189.11,189.04,7.82097457]
[1730951938782,7.82097457,189.1,189.04,7.82097457]
[1730951940068,7.82097457,189.09,189.04,7.82097457]
[1730951940466,7.82097457,189.07,188.97,0.12549]
[1730951940788,7.82097457,189.07,189.01,7.82097457]
[1730951941168,7.82097457,189.07,189.02,7.82097457]
[1730951941509,7.82097457,189.08,189.02,7.82097457]
[1730951944683,7.82097457,189.09,189.03,7.82097457]
[1730951945399,10.76010782,189.11,189.04,7.82097457]
[1730951945699,18.58108239,189.11,189.04,7.82097457]
[1730951946090,10.76010782,189.11,189.04,7.82097457]
[1730951946274,7.82097457,189.1,189.04,7.82097457]
[1730951946992,18.58108239,189.11,189.05,7.82097457]
[1730951947494,7.82097457,189.1,189.04,7.82097457]
[1730951947692,10.76010782,189.11,189.05,7.82097457]
[1730951947895,10.76010782,189.11,189.06,7.82097457]
[1730951948192,10.76010782,189.11,189.05,7.82097457]
[1730951948492,10.76010782,189.11,189.02,16.5329]
[1730951948493,7.82097457,189.15,189.09,7.82097457]
[1730951949400,7.82097457,189.14,189.04,6.0132]
[1730951949591,7.82097457,189.14,189.07,7.82097457]
[1730951950187,7.82097457,189.14,189.08,7.82097457]
[1730951950790,7.82097457,189.14,189.04,6.0132]
[1730951950994,7.82097457,189.14,189.07,7.82097457]
[1730951953697,15.243,189.16,189.02,16.5329]
[1730951953899,7.82097457,189.08,189.02,16.5329]
[1730951954076,7.82097457,189.08,189.02,24.35387457]
[1730951954892,0.1,189.18,189.07,7.82097457]
[1730951955107,3.90999428,189.17,189.11,7.82097457]
[1730951955279,7.82097457,189.18,189.12,7.82097457]
[1730951959507,16.4096,189.21,189.14,7.82097457]
[1730951959508,7.82097457,189.2,189.14,7.82097457]
[1730951959682,7.82097457,189.2,189.13,7.82097457]
[1730951961015,7.82097457,189.19,189.13,7.82097457]
[1730951961592,7.82097457,189.19,189.12,7.82097457]
[1730951962099,7.82097457,189.19,189.13,7.82097457]
[1730951963300,7.82097457,189.2,189.13,7.82097457]
[1730951963696,24.23057457,189.21,189.14,7.82097457]
[1730951964208,7.82097457,189.19,189.13,7.82097457]
[1730951965914,7.82097457,189.2,189.13,7.82097457]
[1730951966096,7.82097457,189.2,189.14,7.82097457]
[1730951967188,16.4096,189.21,189.14,7.82097457]
[1730951967406,24.23057457,189.21,189.14,7.82097457]
[1730951968408,7.82097457,189.2,189.14,7.82097457]
[1730951970918,7.82097457,189.19,189.09,39.894284]
[1730951971216,7.82097457,189.19,189.12,7.82097457]
[1730951972202,7.82097457,189.19,189.13,7.82097457]
[1730951972709,7.82097457,189.2,189.13,7.82097457]
[1730951975101,31.93595386,189.28,189.17,7.82097457]
[1730951975423,7.82097457,189.25,189.18,7.82097457]
[1730951975724,26.65285386,189.28,189.19,7.82097457]
[1730951975897,7.82097457,189.25,189.19,7.82097457]
[1730951979927,7.82097457,189.25,189.18,7.82097457]
[1730951980300,7.82097457,189.24,189.13,23.902374]
[1730951980497,7.82097457,189.24,189.17,7.82097457]
[1730951980703,7.82097457,189.24,189.18,7.82097457]
[1730951981701,7.82097457,189.22,189.12,6.0596]
[1730951981915,7.82097457,189.2,189.13,7.82097457]
[1730951982701,7.82097457,189.19,189.13,7.82097457]
[1730951988830,7.82097457,189.19,189.12,7.82097457]
[1730951990327,7.82097457,189.21,189.14,7.82097457]
[1730951992134,7.82097457,189.2,189.13,7.82097457]
[1730951992833,7.82097457,189.18,189.1,23.776884]
[1730951993127,7.82097457,189.18,189.11,7.82097457]
[1730951993332,7.82097457,189.19,189.12,7.82097457]
[1730951994411,7.82097457,189.19,189.1,23.776884]
[1730951994717,7.82097457,189.19,189.12,7.82097457]
[1730951997420,7.82097457,189.2,189.13,7.82097457]
[1730951997614,7.82097457,189.2,189.14,7.82097457]
[1730951999138,7.82097457,189.21,189.1,23.776884]
[1730951999310,7.82097457,189.21,189.14,7.82097457]
[1730951999727,7.82097457,189.2,189.14,7.82097457]
[1730952000110,7.82097457,189.2,189.13,7.82097457]
[1730952000322,7.82097457,189.21,189.14,7.82097457]
[1730952000823,7.82097457,189.2,189.13,7.82097457]
[1730952001430,7.82097457,189.21,189.14,7.82097457]
[1730952001631,7.82097457,189.21,189.15,7.82097457]
[1730952002826,164.7245,189.29,189.17,7.82097457]
[1730952003132,7.82097457,189.23,189.17,7.82097457]
[1730952003313,7.82097457,189.22,189.11,0.12549]
[1730952003519,0.22549,189.26,189.11,0.12549]
[1730952003837,7.82097457,189.21,189.15,7.82097457]
[1730952004912,7.82097457,189.21,189.14,7.82097457]
[1730952006140,7.82097457,189.21,189.15,7.82097457]
[1730952007622,7.82097457,189.22,189.16,7.82097457]
[1730952008237,5.2834,189.27,189.16,7.82097457]
[1730952008419,7.82097457,189.25,189.18,7.82097457]
[1730952009339,15.9026,189.28,189.22,7.82097457]
[1730952009548,23.72357457,189.28,189.22,7.82097457]
[1730952009725,15.9026,189.28,189.22,7.82097457]
[1730952010048,7.82097457,189.29,189.23,7.82097457]
[1730952010218,3.90437894,189.28,189.24,7.82097457]
[1730952010551,7.82097457,189.29,189.22,7.82097457]
[1730952010744,3.90373812,189.28,189.24,7.82097457]
[1730952011035,7.82097457,189.31,189.25,7.82097457]
[1730952011219,7.82097457,189.3,189.21,16.6344]
[1730952011418,7.82097457,189.3,189.24,7.82097457]
[1730952011916,15.7636,189.32,189.24,7.82097457]
[1730952012227,7.82097457,189.31,189.24,7.82097457]
[1730952012422,15.7636,189.32,189.24,7.82097457]
[1730952012634,7.82097457,189.31,189.24,7.82097457]
[1730952013646,7.82097457,189.3,189.24,7.82097457]
[1730952015027,15.7636,189.32,189.22,23.776884]
[1730952015241,7.82097457,189.32,189.26,7.82097457]
[1730952016847,7.82097457,189.32,189.26,6.82097457]
[1730952017221,7.82097457,189.3,189.22,23.776884]
[1730952017544,7.82097457,189.26,189.2,7.82097457]
[1730952017717,7.82097457,189.27,189.21,7.82097457]
[1730952018352,7.82097457,189.29,189.22,7.82097457]
[1730952018525,7.82097457,189.29,189.23,7.82097457]
[1730952018725,7.82097457,189.3,189.23,7.82097457]
[1730952018920,7.82097457,189.3,189.24,7.82097457]
[1730952019129,22.17359446,189.37,189.26,7.82097457]
[1730952019334,7.82097457,189.32,189.26,7.82097457]
[1730952019538,7.82097457,189.32,189.25,7.82097457]
[1730952020044,7.82097457,189.31,189.25,7.82097457]
[1730952022739,7.82097457,189.31,189.24,7.82097457]
[1730952023141,7.82097457,189.3,189.24,7.82097457]
[1730952023652,7.82097457,189.31,189.21,23.776884]
[1730952023837,7.82097457,189.31,189.24,7.82097457]
[1730952024039,7.82097457,189.31,189.25,7.82097457]
[1730952024349,7.82097457,189.31,189.22,0.12549]
[1730952024544,7.82097457,189.31,189.25,7.82097457]
[1730952025859,7.82097457,189.31,189.24,7.82097457]
[1730952026038,7.82097457,189.31,189.22,0.12549]
[1730952026238,7.82097457,189.31,189.24,7.82097457]
[1730952026556,7.82097457,189.31,189.22,0.12549]
[1730952026557,7.82097457,189.31,189.25,7.82097457]
[1730952027036,7.82097457,189.32,189.26,7.82097457]
[1730952027242,7.82097457,189.32,189.22,0.12549]
[1730952027243,7.82097457,189.32,189.22,20.12549]
[1730952027438,7.82097457,189.32,189.23,23.776884]
[1730952027658,7.82097457,189.31,189.25,7.82097457]
[1730952028173,7.82097457,189.31,189.23,23.776884]
[1730952028336,7.82097457,189.31,189.25,7.82097457]
[1730952028534,20.8760681,189.37,189.25,7.82097457]
[1730952028737,7.82097457,189.32,189.26,7.82097457]
[1730952033368,15.5954681,189.37,189.28,7.82097457]
[1730952033551,7.82097457,189.34,189.28,7.82097457]
[1730952033864,7.82097457,189.33,189.27,7.82097457]
[1730952034043,7.82097457,189.34,189.28,7.82097457]
[1730952034245,7.82097457,189.34,189.27,7.82097457]
[1730952034738,7.82097457,189.34,189.28,7.82097457]
[1730952034938,7.82097457,189.35,189.29,7.82097457]
[1730952035566,7.82097457,189.34,189.28,7.82097457]
[1730952038670,15.5954681,189.37,189.23,39.934384]
[1730952038671,7.82097457,189.31,189.23,39.934384]
[1730952038866,7.82097457,189.31,189.25,7.82097457]
[1730952039461,7.82097457,189.32,189.26,7.82097457]
[1730952039966,7.82097457,189.33,189.26,7.82097457]
[1730952041268,15.5954681,189.37,189.26,7.82097457]
[1730952041460,7.82097457,189.33,189.23,39.934384]
[1730952041661,7.82097457,189.32,189.26,7.82097457]
[1730952041869,7.82097457,189.3,189.23,39.934384]
[1730952042100,7.82097457,189.3,189.23,47.75535857]
[1730952042398,7.82097457,189.28,189.21,7.82097457]
[1730952042870,7.82097457,189.28,189.22,7.82097457]
[1730952043068,7.82097457,189.3,189.23,7.82097457]
[1730952043270,15.5954681,189.37,189.25,7.82097457]
[1730952043469,7.82097457,189.32,189.25,7.82097457]
[1730952045476,7.82097457,189.29,189.21,23.776884]
[1730952045784,7.82097457,189.3,189.24,7.82097457]
[1730952046457,7.82097457,189.31,189.24,7.82097457]
[1730952049374,15.5954681,189.37,189.25,7.82097457]
[1730952049583,7.82097457,189.32,189.26,7.82097457]
[1730952054792,7.82097457,189.33,189.27,7.82097457]
[1730952056575,7.82097457,189.34,189.28,7.82097457]
[1730952057563,7.82097457,189.34,189.22,20.12549]
[1730952057778,7.82097457,189.34,189.28,7.82097457]
[1730952058180,24.43727457,189.29,189.13,16.369]
[1730952058491,24.43727457,189.29,189.17,7.82097457]
[1730952058492,7.82097457,189.23,189.17,7.82097457]
[1730952058676,7.82097457,189.19,189.08,17.26149]
[1730952058879,7.82097457,189.19,189.13,7.82097457]
[1730952059080,23.776884,189.28,189.15,7.82097457]
[1730952059273,7.82097457,189.24,189.18,7.82097457]
[1730952059477,7.82097457,189.25,189.18,7.82097457]
[1730952060963,7.82097457,189.26,189.2,7.82097457]
[1730952061608,16.6163,189.29,189.21,7.82097457]
[1730952061764,7.82097457,189.28,189.22,7.82097457]
[1730952062279,7.82097457,189.29,189.23,7.82097457]
[1730952062598,7.82097457,189.3,189.23,7.82097457]
[1730952063273,7.82097457,189.3,189.24,7.82097457]
[1730952063687,7.82097457,189.31,189.24,7.82097457]
[1730952064190,7.82097457,189.31,189.25,26.31497457]
[1730952064485,16.4133,189.34,189.26,7.82097457]
[1730952064691,7.82097457,189.32,189.26,7.82097457]
[1730952066274,7.82097457,189.33,189.27,7.82097457]
[1730952066475,1.7557452,189.3,189.27,7.82097457]
[1730952068680,1.7557452,189.3,189.22,16.495]
[1730952068681,1.7557452,189.3,189.29,7.82097457]
[1730952072799,1.7557452,189.3,189.28,7.82097457]
[1730952073501,1.7557452,189.3,189.23,43.902374]
[1730952073681,1.7557452,189.3,189.28,7.82097457]
[1730952074383,1.7557452,189.3,189.23,43.902374]
[1730952074584,1.7557452,189.3,189.28,7.82097457]
[1730952075203,1.7557452,189.3,189.29,7.82097457]
[1730952075418,1.7557452,189.3,189.28,7.82097457]
[1730952077603,1.7557452,189.3,189.29,7.82097457]
[1730952079307,1.7557452,189.3,189.23,43.902374]
[1730952079503,1.7557452,189.3,189.28,7.82097457]
[1730952080800,1.7557452,189.3,189.29,7.82097457]
[1730952081999,1.7557452,189.3,189.22,16.495]
[1730952082508,1.7557452,189.3,189.25,7.82097457]
[1730952082704,1.7557452,189.3,189.26,7.82097457]
[1730952083997,1.7557452,189.3,189.27,7.82097457]
[1730952084193,1.7557452,189.3,189.28,7.82097457]
[1730952084390,1.7557452,189.3,189.27,7.82097457]
[1730952086085,1.7557452,189.3,189.26,7.82097457]
[1730952086412,9.57671977,189.3,189.17,17.12856408]
[1730952086624,7.82097457,189.28,189.22,7.82097457]
[1730952087503,7.82097457,189.29,189.23,7.82097457]
[1730952087815,9.57671977,189.3,189.23,7.82097457]
[1730952088512,7.82097457,189.28,189.18,23.902374]
[1730952088810,7.82097457,189.27,189.2,7.82097457]
[1730952089018,1.7557452,189.3,189.23,7.82097457]
[1730952089310,7.82097457,189.29,189.23,7.82097457]
[1730952089494,7.82097457,189.28,189.22,7.82097457]
[1730952089696,7.82097457,189.28,189.21,7.82097457]
[1730952090195,1.7557452,189.3,189.21,7.82097457]
[1730952090196,7.82097457,189.27,189.21,7.82097457]
[1730952090396,7.82097457,189.27,189.2,7.82097457]
[1730952092324,7.82097457,189.27,189.21,7.82097457]
[1730952092719,7.82097457,189.28,189.22,7.82097457]
[1730952093215,7.82097457,189.27,189.21,7.82097457]
[1730952094698,7.82097457,189.28,189.22,7.82097457]
[1730952095218,1.7557452,189.3,189.22,7.82097457]
[1730952095426,7.82097457,189.28,189.22,7.82097457]
[1730952096508,7.82097457,189.29,189.22,7.82097457]
[1730952096707,7.82097457,189.29,189.23,7.82097457]
[1730952097024,7.82097457,189.29,189.22,7.82097457]
[1730952097219,7.82097457,189.28,189.22,7.82097457]
[1730952097527,7.82097457,189.28,189.21,7.82097457]
[1730952099211,7.82097457,189.27,189.21,7.82097457]
[1730952102006,7.82097457,189.25,189.17,16.2103]
[1730952102209,7.82097457,189.23,189.17,7.82097457]
[1730952102823,7.82097457,189.25,189.19,7.82097457]
[1730952103019,9.57671977,189.3,189.23,7.82097457]
[1730952104708,9.57671977,189.3,189.21,23.776884]
[1730952104927,9.57671977,189.3,189.23,7.82097457]
[1730952111651,7.82097457,189.29,189.22,7.82097457]
[1730952111945,9.57671977,189.3,189.23,7.82097457]
[1730952112652,1.7557452,189.3,189.22,0.12549]
[1730952112821,1.7557452,189.3,189.28,7.82097457]
[1730952113929,1.7557452,189.3,189.27,7.82097457]
[1730952114357,1.7557452,189.3,189.28,7.82097457]
[1730952117446,1.7557452,189.3,189.24,0.12549]
[1730952117750,1.7557452,189.3,189.29,7.82097457]
[1730952119031,1.7557452,189.3,189.29,31.59785857]
[1730952120653,1.7557452,189.3,189.29,31.72334857]
[1730952121446,1.7557452,189.3,189.29,23.902374]
[1730952121759,1.7557452,189.3,189.29,31.72334857]
[1730952126047,1.7557452,189.3,189.29,23.902374]
[1730952126251,1.7557452,189.3,189.29,31.72334857]
[1730952126854,1.7557452,189.3,189.29,23.776884]
[1730952127051,1.7557452,189.3,189.29,31.59785857]
[1730952127274,1.7557452,189.3,189.29,23.776884]
[1730952127446,1.7557452,189.3,189.29,31.59785857]
[1730952130358,1.7557452,189.3,189.29,23.776884]
[1730952130551,1.7557452,189.3,189.29,31.59785857]
[1730952132352,1.7557452,189.3,189.29,31.72334857]
[1730952136977,1.7557452,189.3,189.29,31.22334857]
[1730952137564,1.7557452,189.3,189.29,31.09785857]
[1730952137760,1.7557452,189.3,189.17,70.0]
[1730952137761,1.7557452,189.3,189.18,96.3]
[1730952137962,7.82097457,189.28,189.22,7.82097457]
[1730952138866,7.82097457,189.29,189.22,7.82097457]
[1730952139379,7.82097457,189.28,189.18,23.902374]
[1730952139680,7.82097457,189.28,189.22,7.82097457]
[1730952140475,7.82097457,189.27,189.21,7.82097457]
[1730952141264,7.82097457,189.26,189.18,0.12549]
[1730952141593,1.7557452,189.3,189.24,7.82097457]
[1730952141766,1.7557452,189.3,189.25,7.82097457]
[1730952142580,1.7557452,189.3,189.22,0.12549]
[1730952142793,1.7557452,189.3,189.24,7.82097457]
[1730952144286,1.7557452,189.3,189.25,7.82097457]
[1730952144974,7.82097457,189.28,189.17,16.3963]
[1730952145279,7.82097457,189.29,189.22,7.82097457]
[1730952145863,9.57671977,189.3,189.23,7.82097457]
[1730952146063,7.82097457,189.29,189.23,7.82097457]
[1730952146668,7.82097457,189.29,189.19,23.902374]
[1730952146992,7.82097457,189.29,189.23,7.82097457]
[1730952147189,7.82097457,189.28,189.19,23.776884]
[1730952147388,7.82097457,189.26,189.17,16.3963]
[1730952147596,7.82097457,189.27,189.21,7.82097457]
[1730952147894,7.82097457,189.27,189.18,0.12549]
[1730952148198,9.57671977,189.3,189.24,7.82097457]
[1730952148784,9.57671977,189.3,189.23,7.82097457]
[1730952149601,7.82097457,189.28,189.22,7.82097457]
[1730952149770,7.82097457,189.29,189.22,7.82097457]
[1730952150492,7.82097457,189.29,189.23,7.82097457]
[1730952150680,9.57671977,189.3,189.24,7.82097457]
[1730952150980,1.7557452,189.3,189.18,43.902374]
[1730952151173,9.57671977,189.3,189.24,7.82097457]
[1730952152407,1.7557452,189.3,189.24,7.82097457]
[1730952153203,1.7557452,189.3,189.25,7.82097457]
[1730952153777,1.7557452,189.3,189.26,7.82097457]
[1730952154095,1.7557452,189.3,189.28,7.82097457]
[1730952154396,1.7557452,189.3,189.29,7.82097457]
[1730952155094,1.7557452,189.3,189.29,31.59785857]
[1730952155798,1.7557452,189.3,189.29,31.72334857]
[1730952156013,0.5833681,189.37,189.3,23.902374]
[1730952156178,0.5833681,189.37,189.35,7.82097457]
[1730952156796,0.5833681,189.37,189.36,7.82097457]
[1730952157176,0.5833681,189.37,189.33,23.902374]
[1730952157378,0.5833681,189.37,189.36,7.82097457]
[1730952157696,0.5833681,189.37,189.33,23.776884]
[1730952157877,0.5833681,189.37,189.33,7.82097457]
[1730952158202,0.5833681,189.37,189.34,7.82097457]
[1730952160181,0.5833681,189.37,189.35,7.82097457]
[1730952161497,0.5833681,189.37,189.31,23.776884]
[1730952161692,0.5833681,189.37,189.35,7.82097457]
[1730952162700,0.5833681,189.37,189.31,23.776884]
[1730952162904,0.5833681,189.37,189.34,7.82097457]
[1730952163407,8.40434267,189.37,189.28,15.6214]
[1730952163585,8.40434267,189.37,189.23,96.4]
[1730952163586,7.82097457,189.35,189.29,7.82097457]
[1730952163783,0.5833681,189.37,189.31,7.82097457]
[1730952163982,8.40434267,189.37,189.31,7.82097457]
[1730952165201,7.82097457,189.36,189.3,7.82097457]
[1730952165503,7.82097457,189.36,189.29,7.82097457]
[1730952165706,7.82097457,189.36,189.3,7.82097457]
[1730952166210,8.40434267,189.37,189.31,7.82097457]
[1730952167231,0.5833681,189.37,189.33,7.82097457]
[1730952167499,0.5833681,189.37,189.24,23.902374]
[1730952167500,0.5833681,189.37,189.34,7.82097457]
[1730952169015,0.5833681,189.37,189.36,7.82097457]
[1730952169308,0.5833681,189.37,189.34,7.82097457]
[1730952169698,0.5833681,189.37,189.31,0.12549]
[1730952169906,0.5833681,189.37,189.34,7.82097457]
[1730952171803,0.5833681,189.37,189.25,20.0]
[1730952172010,8.40434267,189.37,189.31,7.82097457]
[1730952174010,8.40434267,189.37,189.26,23.776884]
[1730952174228,7.82097457,189.36,189.3,7.82097457]
[1730952174400,0.5833681,189.37,189.31,7.82097457]
[1730952174401,8.40434267,189.37,189.31,7.82097457]
[1730952179702,7.82097457,189.34,189.23,112.7967]
[1730952179901,7.82097457,189.31,189.2,15.3115]
[1730952180520,15.9341,189.28,189.15,0.91828337]
[1730952180698,7.82097457,189.26,189.2,7.82097457]
[1730952182590,7.82097457,189.21,189.14,16.1892]
[1730952182797,44.002374,189.27,189.08,16.1704]
[1730952182995,7.82097457,189.18,189.13,7.82097457]
[1730952183214,44.002374,189.27,189.08,16.1704]
[1730952183628,7.82097457,189.23,189.16,7.82097457]
[1730952183923,15.9341,189.28,189.19,7.82097457]
[1730952184095,7.82097457,189.26,189.19,7.82097457]
[1730952184302,7.82097457,189.26,189.08,16.1704]
[1730952184303,7.82097457,189.21,189.08,16.1704]
[1730952184705,7.82097457,189.21,189.09,20.0]
[1730952185029,7.82097457,189.21,189.15,7.82097457]
[1730952185229,7.82097457,189.21,189.1,23.776884]
[1730952185411,7.82097457,189.21,189.14,7.82097457]
[1730952185817,7.82097457,189.21,189.15,7.82097457]
[1730952186028,7.82097457,189.19,189.13,7.82097457]
[1730952186324,7.82097457,189.19,189.09,7.82097457]
[1730952186325,7.82097457,189.16,189.09,7.82097457]
[1730952186716,7.82097457,189.16,189.1,7.82097457]
[1730952186903,7.82097457,189.17,189.1,7.82097457]
[1730952187333,7.82097457,189.16,189.04,0.12549]
[1730952187506,7.82097457,189.14,189.03,21.0901]
[1730952187708,7.82097457,189.13,189.03,21.0901]
[1730952188010,7.82097457,189.12,189.06,7.82097457]
[1730952188199,7.82097457,189.14,189.08,7.82097457]
[1730952188401,22.1357,189.19,189.09,7.82097457]
[1730952188718,7.82097457,189.16,189.09,7.82097457]
[1730952188917,7.82097457,189.16,189.1,7.82097457]
[1730952189233,22.1357,189.19,189.01,20.12549]
[1730952189234,29.95667457,189.19,189.13,7.82097457]
[1730952189409,7.82097457,189.2,189.14,7.82097457]
[1730952189736,16.3304,189.23,189.15,7.82097457]
[1730952189909,24.15137457,189.23,189.11,0.12549]
[1730952190106,24.15137457,189.23,189.17,7.82097457]
[1730952190416,16.3304,189.23,189.18,7.82097457]
[1730952190628,7.82097457,189.27,189.21,7.82097457]
[1730952190804,6.362,189.35,189.26,7.82097457]
[1730952191005,0.5833681,189.37,189.3,7.82097457]
[1730952191239,7.82097457,189.36,189.3,7.82097457]
[1730952191535,12.16969512,189.35,189.28,12.16969512]
[1730952191832,12.16969512,189.35,189.29,12.16969512]
[1730952192012,0.5833681,189.37,189.21,23.776884]
[1730952192013,12.16969512,189.33,189.21,23.776884]
[1730952192328,12.16969512,189.28,189.22,12.16969512]
[1730952193017,12.16969512,189.27,189.21,12.16969512]
[1730952194028,12.16969512,189.28,189.22,12.16969512]
[1730952194229,12.16969512,189.3,189.24,12.16969512]
[1730952194434,14.20103019,189.37,189.19,0.12549]
[1730952194435,12.16969512,189.32,189.26,12.16969512]
[1730952194607,12.16969512,189.33,189.27,12.16969512]
[1730952195101,12.16969512,189.32,189.25,12.16969512]
[1730952195319,12.16969512,189.31,189.24,12.16969512]
[1730952195699,12.16969512,189.29,189.23,12.16969512]
[1730952195930,12.16969512,189.27,189.19,0.12549]
[1730952196226,12.16969512,189.29,189.23,12.16969512]
[1730952196411,12.16969512,189.28,189.21,12.16969512]
[1730952196814,0.12549,189.34,189.23,12.16969512]
[1730952197017,12.16969512,189.3,189.23,12.16969512]
[1730952197219,12.16969512,189.29,189.22,12.16969512]
[1730952197513,12.16969512,189.28,189.22,12.16969512]
[1730952198325,12.16969512,189.29,189.22,12.16969512]
[1730952200440,12.16969512,189.3,189.23,12.16969512]
[1730952200622,12.16969512,189.3,189.24,12.16969512]
[1730952201022,12.16969512,189.28,189.19,0.12549]
[1730952201337,12.16969512,189.26,189.2,12.16969512]
[1730952201720,12.16969512,189.27,189.2,12.16969512]
[1730952202614,12.16969512,189.26,189.2,12.16969512]
[1730952202809,12.16969512,189.21,189.19,0.12549]
[1730952205742,12.16969512,189.2,189.19,0.12549]
[1730952206117,12.16969512,189.22,189.19,0.12549]
[1730952206510,12.16969512,189.24,189.19,0.12549]
[1730952207119,12.16969512,189.23,189.19,0.12549]
[1730952207324,12.16969512,189.24,189.19,0.12549]
[1730952207838,12.16969512,189.23,189.19,0.12549]
[1730952208731,12.16969512,189.24,189.19,0.12549]
[1730952208933,12.16969512,189.23,189.19,0.12549]
[1730952211024,12.16969512,189.21,189.19,0.12549]
[1730952211231,12.16969512,189.2,189.19,0.12549]
[1730952211423,12.16969512,189.21,189.19,0.12549]
[1730952212848,12.16969512,189.2,189.19,0.12549]